bitfinex/quotes_ETHUSD_20250620
["timestamp","ask_amount","ask_price","bid_price","bid_amount"]
[1750397132939,10.0,2508.2,2507.7,0.0603]
[1750397133167,10.0,2508.2,2508.0,4.75744082]
[1750397133168,0.37146245,2508.1,2508.0,4.75744082]
[1750397133886,0.37146245,2508.1,2508.0,4.81774082]
[1750397134386,10.0,2508.5,2508.4,3.986605]
[1750397134556,16.88612672,2508.5,2508.4,3.986605]
[1750397134957,16.88612074,2508.5,2508.4,3.986605]
[1750397135158,19.51807277,2508.5,2508.4,3.986605]
[1750397135874,13.00347277,2508.5,2508.4,3.986605]
[1750397136077,16.82752074,2508.5,2508.4,3.986605]
[1750397136278,16.88612074,2508.5,2508.4,3.986605]
[1750397136474,10.43012074,2508.5,2508.4,3.986605]
[1750397136684,16.88512074,2508.5,2508.4,3.986605]
[1750397136975,16.8850795,2508.5,2508.4,3.986605]
[1750397137872,16.88507582,2508.5,2508.4,3.986605]
[1750397138874,16.82647582,2508.5,2508.3,3.9866806]
[1750397139072,0.43007582,2508.4,2508.3,3.9866806]
[1750397139600,0.43005508,2508.4,2508.3,3.9866806]
[1750397139895,0.37145508,2508.4,2508.3,3.9866806]
[1750397140252,16.455,2508.5,2508.4,3.986605]
[1750397140467,16.88505327,2508.5,2508.4,3.986605]
[1750397140666,16.5136,2508.5,2508.4,3.986605]
[1750397140907,16.88505273,2508.5,2508.4,3.986605]
[1750397141088,6.454,2508.5,2508.4,3.986605]
[1750397141402,6.82546414,2508.5,2508.4,3.986605]
[1750397141997,0.37146414,2508.5,2508.4,4.85026917]
[1750397142192,0.37147687,2508.9,2508.8,3.98596938]
[1750397142394,16.82547687,2508.9,2508.8,3.98596938]
[1750397143295,16.88407687,2508.9,2508.8,3.98596938]
[1750397143495,16.5126,2508.9,2508.8,3.98596938]
[1750397143666,16.88402921,2508.9,2508.8,3.98596938]
[1750397143990,0.0586,2508.8,2508.6,3.98621769]
[1750397144167,23.80012875,2508.7,2508.6,3.98621769]
[1750397144360,23.85872875,2508.7,2508.6,3.98621769]
[1750397144579,10.8529,2508.6,2508.5,3.98637401]
[1750397144753,18.19602875,2508.6,2508.5,3.98637401]
[1750397145392,17.82459954,2508.6,2508.5,3.98637401]
[1750397145568,20.62376602,2508.6,2508.5,3.98637401]
[1750397145771,20.62375523,2508.6,2508.5,3.98637401]
[1750397146065,20.56515523,2508.6,2508.4,3.98649857]
[1750397146393,16.8875767,2508.5,2508.4,3.98649857]
[1750397147290,16.88748449,2508.5,2508.4,3.98649857]
[1750397147595,19.09543327,2508.5,2508.4,3.98649857]
[1750397149277,19.09543642,2508.5,2508.4,3.98649857]
[1750397150200,18.72454878,2508.5,2508.4,3.98649857]
[1750397150502,19.09537435,2508.5,2508.4,3.98649857]
[1750397150703,19.0953733,2508.5,2508.4,3.98649857]
[1750397151704,19.09539565,2508.5,2508.4,3.98649857]
[1750397152119,18.72454878,2508.5,2508.4,3.98649857]
[1750397152306,19.09530644,2508.5,2508.4,3.98649857]
[1750397152740,19.09480644,2508.5,2508.4,3.98649857]
[1750397153240,19.03670644,2508.5,2508.4,3.98649857]
[1750397153404,16.82875766,2508.5,2508.4,3.98649857]
[1750397153611,16.8288226,2508.5,2508.4,3.98649857]
[1750397154001,10.0,2508.5,2508.4,3.98649857]
[1750397154202,7.79599954,2508.8,2508.4,3.98649857]
[1750397154203,6.453,2508.8,2508.7,3.98612827]
[1750397154401,6.82385371,2508.8,2508.7,3.98612827]
[1750397155033,6.82384343,2508.8,2508.7,3.98612827]
[1750397155754,10.0,2508.7,2508.6,3.98620164]
[1750397155955,10.0581,2508.7,2508.6,3.98620164]
[1750397156147,10.42886096,2508.7,2508.6,3.98620164]
[1750397156456,10.4288411,2508.7,2508.6,3.98620164]
[1750397156656,0.0581,2508.6,2508.5,3.9863665]
[1750397156845,23.48679954,2508.6,2508.5,3.9863665]
[1750397157044,26.05705592,2508.6,2508.5,3.9863665]
[1750397157365,0.0581,2508.5,2508.4,3.98650939]
[1750397158146,0.0581,2508.4,2508.3,3.98666975]
[1750397158325,23.48679954,2508.4,2508.3,3.98666975]
[1750397159048,10.0581,2508.3,2508.2,3.98682696]
[1750397159250,10.0581,2508.3,2507.8,0.7937]
[1750397159251,0.0581,2508.2,2508.1,3.98695812]
[1750397159503,13.43069954,2508.2,2508.1,3.98695812]
[1750397164085,24.29439954,2508.2,2507.6,0.8305]
[1750397164233,24.29439954,2508.2,2507.7,3.98771782]
[1750397164234,16.97169954,2507.8,2507.7,3.98771782]
[1750397166330,10.0,2507.8,2507.7,3.98771782]
[1750397174341,10.0,2507.8,2507.7,4.87151782]
[1750397175059,10.0,2507.8,2507.7,4.81001782]
[1750397175862,10.0,2507.8,2507.7,3.98771782]
[1750397178974,1.656,2508.2,2508.1,3.98708185]
[1750397179275,18.47792207,2508.2,2508.1,3.98708185]
[1750397179453,18.53602207,2508.2,2508.1,3.98708185]
[1750397179851,18.47792207,2508.2,2508.1,3.98708185]
[1750397180177,18.47698624,2508.2,2508.1,3.98708185]
[1750397181480,18.47702864,2508.2,2508.1,3.98708185]
[1750397181671,18.53512864,2508.2,2508.1,3.98708185]
[1750397181862,18.53512782,2508.2,2508.1,3.98708185]
[1750397182239,18.5351226,2508.2,2508.1,3.98708185]
[1750397182978,18.53512005,2508.2,2508.1,3.98708185]
[1750397183287,10.37102005,2508.2,2508.1,4.84511099]
[1750397183481,10.0,2508.2,2508.1,4.84511099]
[1750397183776,8.68149954,2508.8,2508.7,3.98612827]
[1750397183945,25.50458574,2508.8,2508.7,3.98612827]
[1750397184146,22.68335923,2508.8,2508.7,3.98612827]
[1750397184378,22.10485969,2508.8,2508.7,3.98612827]
[1750397184576,18.4740862,2508.8,2508.7,3.98612827]
[1750397184965,12.0230862,2508.8,2508.7,3.98612827]
[1750397185170,10.3710862,2508.8,2508.7,3.98612827]
[1750397185347,16.8230862,2508.8,2508.7,3.98612827]
[1750397185544,10.37129449,2508.8,2508.7,3.98612827]
[1750397185748,6.452,2508.9,2508.8,3.98596938]
[1750397185948,16.82330075,2508.9,2508.8,3.98596938]
[1750397186549,10.37110946,2508.9,2508.8,3.98596938]
[1750397187381,10.37120519,2508.9,2508.8,3.98596938]
[1750397188769,10.37103693,2508.9,2508.8,3.98596938]
[1750397191508,10.37082663,2508.9,2508.8,3.98596938]
[1750397192198,10.42862663,2508.9,2508.8,3.98596938]
[1750397192506,10.42859858,2508.9,2508.8,3.98596938]
[1750397194313,10.42840525,2508.9,2508.8,3.98596938]
[1750397195613,10.42838187,2508.9,2508.8,3.98596938]
[1750397195825,10.42838237,2508.9,2508.8,3.98596938]
[1750397196915,10.37058237,2508.9,2508.8,3.98596938]
[1750397199527,10.37073726,2508.9,2508.8,3.98596938]
[1750397200039,10.0,2508.9,2508.8,3.98596938]
[1750397203742,10.37090569,2508.9,2508.8,3.98596938]
[1750397204319,10.37094364,2508.9,2508.8,3.98596938]
[1750397204521,10.37106521,2508.9,2508.8,3.98596938]
[1750397205115,10.42886521,2508.9,2508.8,3.98596938]
[1750397205441,10.42886631,2508.9,2508.8,3.98596938]
[1750397205846,10.42886621,2508.9,2508.8,3.98596938]
[1750397206443,10.0578,2508.9,2508.8,3.98596938]
[1750397206642,11.57636141,2508.9,2508.8,3.98596938]
[1750397206844,12.40906141,2508.9,2508.8,3.98596938]
[1750397207971,10.37133999,2508.9,2508.8,3.98596938]
[1750397208268,10.0,2508.9,2508.8,4.04656938]
[1750397208464,0.7708,2509.5,2509.4,3.98501633]
[1750397208625,1.7098,2509.6,2509.5,3.98485754]
[1750397208827,18.529509,2509.6,2509.5,3.98485754]
[1750397209135,20.30608826,2509.6,2509.5,3.98485754]
[1750397209461,8.47158269,2509.6,2509.5,3.98485754]
[1750397209626,18.52938269,2509.6,2509.5,3.98485754]
[1750397209826,18.52939753,2509.6,2509.5,3.98485754]
[1750397210562,10.0578,2509.5,2508.9,3.98578584]
[1750397210728,17.02949954,2509.3,2508.9,3.98578584]
[1750397210923,0.37180148,2509.2,2509.1,3.9854928]
[1750397211542,17.02949954,2509.3,2509.2,3.98533397]
[1750397211754,17.40117966,2509.3,2509.2,3.98533397]
[1750397212683,17.40117788,2509.3,2509.2,3.98533397]
[1750397213082,17.40117586,2509.3,2509.2,3.98533397]
[1750397214244,10.42947632,2509.3,2509.2,3.98533397]
[1750397214445,10.42969596,2509.3,2509.2,3.98533397]
[1750397216083,10.0578,2509.3,2509.2,3.98533397]
[1750397216247,10.42969864,2509.3,2509.2,3.98533397]
[1750397216970,10.37189864,2509.3,2509.2,3.98533397]
[1750397217290,10.37190235,2509.3,2509.2,5.26394181]
[1750397217665,6.447,2509.5,2509.4,3.98501633]
[1750397217864,12.29447175,2509.7,2509.6,3.98469875]
[1750397218189,19.1132972,2509.7,2509.6,3.98469875]
[1750397218386,12.6080972,2509.7,2509.6,3.98469875]
[1750397218750,19.0550972,2509.7,2509.6,3.98469875]
[1750397218946,12.6080972,2509.7,2509.6,3.98469875]
[1750397219153,19.0550972,2509.7,2509.6,3.98469875]
[1750397220200,18.74147175,2509.7,2509.6,3.98469875]
[1750397220410,19.11315781,2509.7,2509.6,3.98469875]
[1750397220698,12.60795782,2509.7,2509.6,3.98469875]
[1750397221000,19.05495782,2509.7,2509.6,3.98469875]
[1750397221377,12.60795782,2509.7,2509.6,3.98469875]
[1750397221778,12.66603488,2509.7,2509.6,3.98469875]
[1750397222387,12.66603612,2509.7,2509.6,3.98469875]
[1750397222572,12.66603544,2509.7,2509.6,3.98469875]
[1750397224310,12.60775809,2509.7,2509.6,3.98469875]
[1750397225910,12.607763,2509.7,2509.6,3.98469875]
[1750397226521,12.60775273,2509.7,2509.6,3.98469875]
[1750397227017,12.66595273,2509.7,2509.6,3.98469875]
[1750397228620,12.29447175,2509.7,2509.6,3.98469875]
[1750397228825,12.66597795,2509.7,2509.6,3.98469875]
[1750397230846,12.66605141,2509.7,2509.6,3.98469875]
[1750397231249,0.0582,2509.6,2509.1,0.7779]
[1750397231549,17.40168848,2509.5,2509.4,3.98493326]
[1750397231856,17.40173948,2509.5,2509.4,3.98493326]
[1750397232751,17.40175916,2509.5,2509.4,3.98493326]
[1750397233326,17.40185696,2509.5,2509.4,3.98493326]
[1750397234416,17.40204457,2509.5,2509.4,3.98493326]
[1750397234653,17.40204457,2509.5,2509.4,3.93493326]
[1750397234857,10.43034503,2509.5,2509.4,3.93493326]
[1750397235019,10.43028507,2509.5,2509.4,3.93493326]
[1750397235633,17.40198461,2509.5,2509.4,3.93493326]
[1750397235932,18.17754701,2509.5,2509.4,3.93493326]
[1750397236414,17.80548778,2509.5,2509.4,3.93493326]
[1750397236738,10.0582,2509.4,2509.3,3.98509366]
[1750397237060,16.87665625,2509.4,2509.3,3.98509366]
[1750397237356,0.825,2509.3,2509.1,3.98540822]
[1750397237555,16.87665625,2509.2,2509.1,3.98540822]
[1750397238643,0.0582,2509.0,2508.9,3.98572172]
[1750397238830,10.0,2508.9,2508.1,6.02339118]
[1750397239035,7.271,2509.0,2508.1,6.78919118]
[1750397239036,6.97169954,2508.6,2508.1,6.78919118]
[1750397239361,23.47589954,2508.6,2508.5,3.98632496]
[1750397239655,23.78946561,2508.6,2508.4,3.98650169]
[1750397239823,0.42996607,2508.5,2508.4,3.98650169]
[1750397240026,23.41769954,2508.6,2508.5,3.98644608]
[1750397240215,23.8476836,2508.6,2508.5,3.98644608]
[1750397240958,23.84771376,2508.6,2508.5,3.98644608]
[1750397241160,16.5042,2508.6,2508.5,3.98644608]
[1750397241357,16.87606417,2508.6,2508.5,3.98644608]
[1750397242034,16.87609033,2508.6,2508.5,3.98644608]
[1750397242368,16.5042,2508.6,2508.5,3.98644608]
[1750397242524,16.87609702,2508.6,2508.5,3.98644608]
[1750397242926,16.87759702,2508.6,2508.5,3.98644608]
[1750397243148,16.5057,2508.6,2508.5,3.98644608]
[1750397243427,16.87724972,2508.6,2508.5,3.98644608]
[1750397244141,16.87725141,2508.6,2508.5,3.98644608]
[1750397244370,16.87717852,2508.6,2508.5,3.98644608]
[1750397244874,16.87717578,2508.6,2508.5,3.98644608]
[1750397245179,16.5057,2508.6,2508.5,3.98644608]
[1750397250964,23.47739954,2508.6,2508.5,3.98644608]
[1750397251167,25.90753949,2508.6,2508.5,3.98644608]
[1750397252612,23.47739954,2508.6,2508.5,3.98644608]
[1750397254008,23.41769954,2508.6,2508.4,3.98657587]
[1750397254306,23.47739954,2508.6,2508.5,3.98644608]
[1750397255295,16.5057,2508.6,2508.5,3.98644608]
[1750397256709,16.446,2508.6,2508.5,3.98644608]
[1750397256900,16.5057,2508.6,2508.5,3.98644608]
[1750397260198,16.87722103,2508.6,2508.5,3.98644608]
[1750397260600,16.87733569,2508.6,2508.5,3.98644608]
[1750397261330,23.84903523,2508.6,2508.5,3.98644608]
[1750397261737,24.62473523,2508.6,2508.5,3.98644608]
[1750397262035,24.62482138,2508.6,2508.5,3.98644608]
[1750397262236,10.0,2508.5,2508.1,6.78921748]
[1750397262435,7.03139954,2508.2,2508.1,6.02349603]
[1750397262641,13.47839954,2508.2,2508.1,6.02349603]
[1750397262802,23.85028315,2508.2,2508.1,2.03641418]
[1750397263294,23.47839954,2508.2,2508.1,2.03641418]
[1750397263496,26.67546765,2508.2,2508.1,2.03641418]
[1750397264199,26.67525303,2508.2,2508.1,2.03641418]
[1750397265137,26.87281403,2508.2,2508.1,2.03641418]
[1750397265334,26.87313406,2508.2,2508.1,2.03641418]
[1750397265744,32.22125695,2508.2,2508.1,2.03641418]
[1750397266323,32.22192077,2508.2,2508.1,2.03641418]
[1750397266529,32.22192077,2508.2,2507.2,0.7919]
[1750397266530,0.0597,2507.7,2507.2,0.7919]
[1750397266712,17.03139954,2507.4,2507.3,3.98826968]
[1750397266903,23.85142226,2507.4,2507.3,3.98826968]
[1750397267432,23.851332,2507.4,2507.3,3.98826968]
[1750397268076,23.851332,2507.4,2507.0,0.7514]
[1750397268234,7.03139954,2507.1,2507.0,3.98868661]
[1750397268571,6.97169954,2507.1,2507.0,3.98868661]
[1750397268972,7.03139954,2507.1,2507.0,3.98868661]
[1750397269255,16.448,2507.2,2507.1,3.98867217]
[1750397269426,16.5077,2507.2,2507.1,3.98867217]
[1750397269841,16.448,2507.2,2507.1,3.98867217]
[1750397272457,16.5077,2507.2,2507.1,3.98867217]
[1750397281886,10.0597,2507.2,2507.1,3.98867217]
[1750397282050,16.5097,2507.2,2507.1,3.98867217]
[1750397283294,19.09976995,2507.2,2507.1,3.98867217]
[1750397283854,10.0,2507.1,2506.6,0.8254]
[1750397284185,0.0622,2506.8,2506.7,3.98930865]
[1750397284384,23.48489954,2506.8,2506.7,3.98930865]
[1750397285087,23.48489954,2506.8,2506.7,4.85200865]
[1750397285088,10.0,2506.8,2506.7,4.85200865]
[1750397286289,10.0,2506.8,2506.7,4.79000865]
[1750397286454,10.0,2506.8,2506.7,3.98930865]
[1750397289387,10.0622,2506.8,2506.7,3.98930865]
[1750397289591,10.0,2506.8,2506.7,3.98930865]
[1750397291417,10.37132287,2506.8,2506.7,3.98930865]
[1750397291807,10.0,2506.8,2506.7,3.98930865]
[1750397292002,10.37132783,2506.8,2506.7,3.98930865]
[1750397292797,10.43352783,2506.8,2506.7,3.98930865]
[1750397293752,10.43352783,2506.8,2506.6,3.98937988]
[1750397293753,10.0,2506.7,2506.6,3.98937988]
[1750397294026,10.43334792,2506.7,2506.6,3.98937988]
[1750397294347,10.43378591,2506.7,2506.6,3.98937988]
[1750397294648,10.43378578,2506.7,2506.6,3.98937988]
[1750397294923,0.0622,2506.6,2506.5,0.218054]
[1750397295128,7.40548304,2506.6,2506.5,4.20768096]
[1750397295284,7.40548304,2506.6,2506.5,4.15768096]
[1750397296214,7.4054842,2506.6,2506.5,4.15768096]
[1750397296710,6.82297094,2506.6,2506.5,4.15768096]
[1750397297227,6.88517094,2506.6,2506.5,4.15768096]
[1750397297434,7.48033034,2506.6,2506.5,4.15768096]
[1750397298662,17.48033254,2506.6,2506.5,4.15768096]
[1750397298941,24.45203208,2506.6,2506.5,4.15768096]
[1750397299113,24.45192684,2506.6,2506.5,4.15768096]
[1750397299428,17.48026278,2506.6,2506.5,4.15768096]
[1750397299638,24.45196232,2506.6,2506.5,0.168054]
[1750397299792,24.45196232,2506.6,2506.5,4.15768096]
[1750397299998,24.45196109,2506.6,2506.5,4.15768096]
[1750397300199,24.45196043,2506.6,2506.5,4.15768096]
[1750397300837,24.45196,2506.6,2506.5,4.15768096]
[1750397301204,16.88488768,2506.6,2506.5,4.15768096]
[1750397302337,16.88483284,2506.6,2506.5,4.15768096]
[1750397302579,16.5132,2506.6,2506.5,4.15768096]
[1750397302871,16.88488568,2506.6,2506.5,0.168054]
[1750397303242,16.88486938,2506.6,2506.5,0.168054]
[1750397303443,19.61084346,2506.6,2506.5,0.168054]
[1750397303977,26.582543,2506.6,2506.5,0.168054]
[1750397304457,27.349143,2506.6,2506.5,0.168054]
[1750397305687,11.13826953,2506.6,2506.5,4.15768096]
[1750397305877,16.88216953,2506.6,2506.5,4.15768096]
[1750397306195,16.88217908,2506.6,2506.5,4.15768096]
[1750397306681,10.37167908,2506.6,2506.5,4.15768096]
[1750397307454,10.37167908,2506.6,2506.5,4.97098096]
[1750397307658,0.37167908,2506.6,2506.5,5.86705471]
[1750397307949,1.14696106,2507.5,2507.4,3.98819494]
[1750397307950,2.04476106,2507.5,2507.4,3.98819494]
[1750397308153,18.86759058,2507.5,2507.4,3.98819494]
[1750397308385,12.41659058,2507.5,2507.4,3.98819494]
[1750397308699,18.47482952,2507.5,2507.4,3.98819494]
[1750397309403,7.03019954,2507.8,2507.7,3.98771782]
[1750397309551,13.79553199,2507.8,2507.7,3.98771782]
[1750397309751,23.79553199,2507.8,2507.7,3.98771782]
[1750397310184,17.34325589,2507.8,2507.7,3.98771782]
[1750397310394,23.79525589,2507.8,2507.7,3.98771782]
[1750397311005,17.34325589,2507.8,2507.7,3.98771782]
[1750397311210,0.37155635,2507.8,2507.7,3.98771782]
[1750397311375,0.37155635,2507.8,2507.7,4.75731782]
[1750397311703,10.37158519,2507.8,2507.7,4.75731782]
[1750397312161,17.34328473,2507.8,2507.7,4.75731782]
[1750397312363,17.34293249,2507.8,2507.7,4.75731782]
[1750397313293,10.37123295,2507.8,2507.7,4.75731782]
[1750397313482,10.37123295,2507.8,2507.7,4.81881782]
[1750397313682,10.37123295,2507.8,2507.7,4.75731782]
[1750397314613,10.37123295,2507.8,2507.7,4.81881782]
[1750397315195,10.37102656,2507.8,2507.7,4.75731782]
[1750397315511,10.0,2507.8,2507.7,4.75731782]
[1750397318082,10.0,2507.8,2507.7,4.81881782]
[1750397318275,6.97169954,2508.0,2507.9,3.98739981]
[1750397318499,23.79242929,2508.0,2507.9,3.98739981]
[1750397318809,23.42169954,2508.0,2507.9,3.98739981]
[1750397319014,10.0,2508.0,2507.9,4.04889981]
[1750397319219,10.0,2508.0,2507.9,5.83316975]
[1750397319575,6.451,2508.3,2508.0,3.98721658]
[1750397319776,6.97169954,2508.4,2508.2,3.98692289]
[1750397319975,6.97169954,2508.4,2508.3,3.98676394]
[1750397320217,16.97169954,2508.6,2508.5,3.98630417]
[1750397320416,23.85086801,2508.6,2508.5,3.98630417]
[1750397320913,23.85086801,2508.6,2508.4,3.98651954]
[1750397321111,6.97169954,2508.5,2508.4,3.98651954]
[1750397321411,10.0,2508.4,2508.3,3.98667606]
[1750397321620,23.48319954,2508.4,2508.3,3.98667606]
[1750397322498,23.42469954,2508.4,2508.3,3.98667606]
[1750397323420,16.453,2508.4,2508.3,3.98667606]
[1750397323594,16.453,2508.5,2508.4,3.986605]
[1750397323988,10.0,2508.5,2508.4,3.986605]
[1750397324208,16.453,2508.5,2508.4,3.986605]
[1750397324726,16.453,2508.5,2508.3,3.98667574]
[1750397324920,10.0585,2508.3,2508.2,3.98680163]
[1750397325079,23.48419954,2508.3,2508.2,3.98680163]
[1750397325685,23.85402907,2508.3,2508.1,3.98706044]
[1750397325889,0.0585,2508.2,2508.0,3.98711243]
[1750397326201,16.453,2508.1,2508.0,3.98711243]
[1750397326822,16.403,2508.1,2508.0,3.98711243]
[1750397328333,16.453,2508.1,2508.0,3.98711243]
[1750397330299,16.5115,2508.1,2508.0,3.98711243]
[1750397331133,10.0,2508.0,2507.9,3.98731999]
[1750397331341,7.03019954,2508.0,2507.9,3.98731999]
[1750397332641,6.97169954,2508.0,2507.9,3.98731999]
[1750397333167,16.453,2508.1,2508.0,3.98724082]
[1750397333462,10.0,2508.1,2508.0,3.98724082]
[1750397335736,10.37106506,2508.1,2508.0,3.98724082]
[1750397336466,10.37106996,2508.1,2508.0,3.98724082]
[1750397336859,10.0,2508.1,2508.0,3.98724082]
[1750397337062,10.3711148,2508.1,2508.0,3.98724082]
[1750397338372,13.42269954,2508.3,2508.0,3.98724082]
[1750397338373,13.42269954,2508.3,2508.2,3.98692289]
[1750397338548,13.85454718,2508.3,2508.2,3.98692289]
[1750397338969,13.48289954,2508.3,2508.2,3.98692289]
[1750397339274,23.79464096,2508.3,2508.2,3.98692289]
[1750397339769,23.42269954,2508.3,2508.2,3.98692289]
[1750397339962,23.79464948,2508.3,2508.2,3.98692289]
[1750397340265,23.79483663,2508.3,2508.2,3.98692289]
[1750397340475,23.85503663,2508.3,2508.2,3.98692289]
[1750397341039,23.79483663,2508.3,2508.2,3.98692289]
[1750397341337,23.79483508,2508.3,2508.2,3.98692289]
[1750397341984,23.42269954,2508.3,2508.2,3.98692289]
[1750397342185,17.34383574,2508.3,2508.2,3.98692289]
[1750397342383,0.3721362,2508.3,2508.2,3.98692289]
[1750397342584,10.3721362,2508.3,2508.2,3.98692289]
[1750397343890,10.37218339,2508.3,2508.2,3.98692289]
[1750397345891,10.43251335,2508.3,2508.2,3.98692289]
[1750397346043,10.432515,2508.3,2508.2,3.98692289]
[1750397346239,12.83940645,2508.3,2507.8,0.8035]
[1750397346487,12.52729145,2508.3,2508.2,3.98692289]
[1750397346691,12.89975628,2508.3,2508.2,3.98692289]
[1750397347061,10.37246483,2508.3,2508.2,3.98692289]
[1750397347458,0.37246483,2508.3,2508.2,3.98692289]
[1750397347680,0.37246483,2508.3,2508.2,4.80892289]
[1750397348602,16.448,2508.8,2508.7,3.98612827]
[1750397348898,10.37251796,2508.8,2508.7,3.98612827]
[1750397349505,10.37263181,2508.8,2508.7,3.98612827]
[1750397349807,10.37263136,2508.8,2508.7,3.98612827]
[1750397350010,10.0,2508.8,2508.3,0.8023]
[1750397350218,10.0602,2508.8,2508.7,3.98612827]
[1750397350418,10.43283133,2508.8,2508.7,3.98612827]
[1750397351517,10.37263133,2508.8,2508.7,3.98612827]
[1750397353017,10.37238469,2508.8,2508.7,3.98612827]
[1750397354319,10.37222018,2508.8,2508.7,3.98612827]
[1750397354490,11.25991956,2508.8,2508.7,3.98612827]
[1750397354690,10.8877,2508.8,2508.7,3.98612827]
[1750397354889,11.25991482,2508.8,2508.7,3.98612827]
[1750397355120,10.8877,2508.8,2508.7,3.98612827]
[1750397355325,10.43237192,2508.8,2508.7,3.98612827]
[1750397355530,6.82417192,2508.8,2508.7,3.98612827]
[1750397355825,6.82417192,2508.8,2508.7,4.78905974]
[1750397356427,0.37217192,2508.8,2508.7,4.78905974]
[1750397356723,10.37217192,2508.8,2508.7,4.78905974]
[1750397357020,10.37198947,2508.8,2508.7,4.78905974]
[1750397357938,10.37198947,2508.8,2508.7,3.98612827]
[1750397358135,10.37185618,2508.8,2508.7,3.98612827]
[1750397358332,10.37185617,2508.8,2508.7,3.98612827]
[1750397358544,7.34355571,2508.8,2508.7,3.98612827]
[1750397358747,7.40375571,2508.8,2508.7,3.98612827]
[1750397359338,7.34355571,2508.8,2508.7,3.98612827]
[1750397359851,23.79655571,2508.8,2508.7,3.98612827]
[1750397360046,10.37185468,2508.8,2508.7,4.78336974]
[1750397360237,16.82485468,2508.8,2508.7,4.78336974]
[1750397360438,16.82485223,2508.8,2508.7,4.78336974]
[1750397360848,16.453,2508.8,2508.7,4.78336974]
[1750397361050,16.8247846,2508.8,2508.7,4.78336974]
[1750397361447,17.34352907,2508.8,2508.7,3.98612827]
[1750397361750,17.40372907,2508.8,2508.7,3.98612827]
[1750397361948,17.34352907,2508.8,2508.7,3.98612827]
[1750397362873,17.34352619,2508.8,2508.7,3.98612827]
[1750397363962,17.34355521,2508.8,2508.7,3.98612827]
[1750397364551,10.0,2508.8,2508.7,3.98612827]
[1750397364869,10.37184064,2508.8,2508.7,3.98612827]
[1750397365074,10.37184048,2508.8,2508.7,3.98612827]
[1750397365782,10.37184107,2508.8,2508.7,3.98612827]
[1750397366280,10.0,2508.8,2508.7,3.98612827]
[1750397366479,10.3718388,2508.8,2508.7,3.98612827]
[1750397366778,10.0,2508.8,2508.7,3.98612827]
[1750397366971,10.37183742,2508.8,2508.7,3.98612827]
[1750397367750,10.37183742,2508.8,2508.7,4.74042827]
[1750397368185,0.37183742,2508.8,2508.7,4.74042827]
[1750397368385,8.62569954,2509.2,2509.1,3.9854928]
[1750397368558,17.34360621,2509.2,2509.1,3.9854928]
[1750397368883,0.06,2509.3,2509.2,3.98533397]
[1750397368884,6.448,2509.3,2509.2,3.98533397]
[1750397369056,16.81992201,2509.3,2509.2,3.98533397]
[1750397369380,16.81992655,2509.3,2509.2,3.98533397]
[1750397369585,0.37192655,2509.3,2509.2,3.98533397]
[1750397369789,13.41969954,2509.4,2509.3,3.98517514]
[1750397370088,23.79169553,2509.4,2509.3,3.98517514]
[1750397371882,10.37199599,2509.4,2509.3,3.98517514]
[1750397372184,17.34369553,2509.4,2509.3,3.98517514]
[1750397372680,17.34350304,2509.4,2509.3,3.98517514]
[1750397374190,17.34335844,2509.4,2509.3,3.98517514]
[1750397375562,17.34347899,2509.4,2509.3,3.98517514]
[1750397375887,17.40347899,2509.4,2509.3,3.98517514]
[1750397376666,17.40339636,2509.4,2509.3,3.98517514]
[1750397377298,17.40339479,2509.4,2509.3,3.98517514]
[1750397377833,17.40363051,2509.4,2509.3,3.98517514]
[1750397379126,17.4035771,2509.4,2509.3,3.98517514]
[1750397379583,17.40355656,2509.4,2509.3,3.98517514]
[1750397379990,17.40351884,2509.4,2509.3,3.98517514]
[1750397381101,17.03169954,2509.4,2509.3,3.98517514]
[1750397381302,17.40356591,2509.4,2509.3,3.98517514]
[1750397382423,17.03169954,2509.4,2509.3,3.98517514]
[1750397382727,17.4035114,2509.4,2509.3,3.98517514]
[1750397382924,3.05427175,2509.7,2509.6,3.98469875]
[1750397382925,2.23627175,2509.7,2509.6,3.98469875]
[1750397383104,6.81785388,2509.7,2509.6,3.98469875]
[1750397383304,16.81785388,2509.7,2509.6,3.98469875]
[1750397384223,16.81777079,2509.7,2509.6,3.98469875]
[1750397384389,10.37177079,2509.7,2509.6,3.98469875]
[1750397384692,10.37177419,2509.7,2509.6,3.98469875]
[1750397386331,10.37171436,2509.7,2509.6,3.98469875]
[1750397386537,10.37171436,2509.7,2509.6,5.04151693]
[1750397387102,10.43171805,2509.7,2509.6,5.04151693]
[1750397388546,10.43181198,2509.7,2509.6,5.04151693]
[1750397388750,10.43178568,2509.7,2509.6,5.04151693]
[1750397389847,10.06,2509.7,2509.6,5.04151693]
[1750397390054,10.43178574,2509.7,2509.6,5.04151693]
[1750397390229,10.43178556,2509.7,2509.6,5.04151693]
[1750397391248,10.43191191,2509.7,2509.6,5.04151693]
[1750397391450,10.4319124,2509.7,2509.6,5.04151693]
[1750397392751,10.43194134,2509.7,2509.6,5.04151693]
[1750397393452,10.06,2509.7,2509.6,5.04151693]
[1750397393843,10.43195741,2509.7,2509.6,5.04151693]
[1750397395660,10.43219358,2509.7,2509.6,5.04151693]
[1750397397159,10.43256026,2509.7,2509.6,5.04151693]
[1750397397337,10.43256032,2509.7,2509.6,5.04151693]
[1750397398426,10.06,2509.7,2509.6,5.04151693]
[1750397398628,10.43256109,2509.7,2509.6,5.04151693]
[1750397398831,10.43446109,2509.7,2509.6,5.04151693]
[1750397399361,10.43445847,2509.7,2509.6,5.04151693]
[1750397399729,10.37255847,2509.7,2509.6,5.04151693]
[1750397399936,10.37255847,2509.7,2509.6,6.05375882]
[1750397400316,0.37255847,2509.7,2509.6,6.97800404]
[1750397400522,7.81119954,2510.5,2510.4,3.98342893]
[1750397400722,14.25519954,2510.5,2510.4,3.98342893]
[1750397400936,24.62785161,2510.5,2510.4,3.98342893]
[1750397401359,24.62785452,2510.5,2510.4,3.98342893]
[1750397401958,24.62785452,2510.5,2510.2,3.98373057]
[1750397401959,0.0619,2510.3,2510.2,3.98373057]
[1750397402171,23.85025452,2510.3,2510.2,3.98373057]
[1750397402947,23.85035838,2510.3,2510.2,3.98373057]
[1750397403977,23.85000912,2510.3,2510.2,3.98373057]
[1750397404493,23.8500128,2510.3,2510.2,3.98373057]
[1750397405096,23.85001183,2510.3,2510.2,3.98373057]
[1750397405395,23.85002123,2510.3,2510.2,3.98373057]
[1750397405753,23.85002071,2510.3,2510.2,3.98373057]
[1750397406150,23.84992889,2510.3,2510.2,3.98373057]
[1750397406791,23.84993746,2510.3,2510.2,3.98373057]
[1750397406995,17.40593746,2510.3,2510.2,3.98373057]
[1750397407192,23.84893746,2510.3,2510.2,3.98373057]
[1750397407892,25.5600143,2510.3,2510.2,3.98373057]
[1750397408459,25.18767638,2510.3,2510.2,3.98373057]
[1750397408657,25.56002353,2510.3,2510.2,3.98373057]